[Event "4NCL 2021-22"]
[Site "England"]
[Date "2022.04.30"]
[Round "7.47"]
[White "Chow, Samuel"]
[Black "Willson, Ollie"]
[Result "1-0"]
[ECO "E11"]
[WhiteElo "2400"]
[BlackElo "2108"]
[Annotator "TA"]
[PlyCount "187"]
[EventDate "2021.11.27"]
[EventType "team-tourn"]
[EventCountry "ENG"]
[SourceTitle "playchess.com"]
[Source "ChessBase"]
[SourceQuality "1"]
[TimeControl "40/6000+30:3000+30"]

{[%evp 9,186,18,48,45,51,51,48,43,45,21,20,16,25,0,9,16,26,18,27,29,31,32,20,18,33,29,52,20,7,0,0,0,104,99,108,98,104,99,103,108,108,105,109,103,107,77,111,117,116,116,144,151,147,133,154,141,152,90,95,83,151,144,142,120,126,127,202,188,247,176,175,182,345,283,283,283,283,283,283,278,283,278,449,422,459,437,384,320,698,681,712,573,749,749,719,740,703,685,685,637,756,753,749,756,756,756,756,756,737,731,697,749,749,749,749,742,727,727,727,727,12039,614,658,286,1188,946,925,609,912,778,589,538,435,350,527,496,658,343,929,915,880,846,766,741,862,0,701,701,880,847,29950,29956,29945,29949,3194,217,29964,29965,29961,29964,29968,29969,29966,29968,29964,29965,29962,29956,29988,29989,29989,29990,29994,29993,29993,29994,29994,29995,29999]} 1. d4 {[%emt 0:00:03]} Nf6 {[%emt 0:03:21]} 2. c4 {[%emt 0:00:27]} e6 {[%emt 0:00:24]} 3. Nf3 {[%emt 0:00:25]} Bb4+ {[%emt 0:00:14]} 4. Bd2 {[%emt 0:00:21]} a5 {[%emt 0:00:07]} 5. a3 {[%emt 0:00:40]} Be7 {[%emt 0:00:42]} 6. Nc3 {[%emt 0:01:06] E11: Bogo-Indian.} d5 {[%emt 0:00:40]} 7. Bf4 {[%emt 0:04:11]} O-O {[%emt 0:01:02]} 8. e3 {[%emt 0:00:53] White is slightly better.} (8. Qc2 {with more complications.} Nh5 9. Be5 Nd7 10. e3) 8... b6 {[%emt 0:02:53]} 9. Nb5 {[%emt 0:05:30]} Na6 {[%emt 0:02:49] [#]} 10. Rc1 $146 {[%emt 0:01:55]} ({Predecessor:} 10. Ne5 Bb7 11. h3 Re8 12. Rc1 c6 13. cxd5 cxb5 14. dxe6 fxe6 15. Bxb5 Rf8 16. f3 Rc8 17. O-O {0-1 (27) Braun,T (1891)-Slavic,N Subotica 2015}) 10... Bb7 {[%emt 0:10:19]} 11. Bd3 {[%emt 0:13:23]} c6 {[%emt 0:07:29]} 12. Nc3 {[%emt 0:00:10]} c5 {[%emt 0:00:13]} 13. cxd5 {[%emt 0:16:43]} exd5 {[%emt 0:08:47]} (13... Nxd5 {is more complex.} 14. Nxd5 Qxd5 15. O-O cxd4 16. exd4 Rac8) 14. O-O {[%emt 0:03:51]} Nc7 {[%emt 0:06:47]} 15. Re1 {[%emt 0:03:30]} Ne6 {[%emt 0:02:50]} 16. Be5 {[%emt 0:01:01]} Bd6 {[%emt 0:16:01]} 17. Bb1 {[%emt 0:12:02]} g6 {[%emt 0:06:18]} 18. Bxd6 {[%emt 0:03:37]} (18. Ba2 $5 {[%cal Re5f6]}) 18... Qxd6 {[%emt 0:00:08]} 19. dxc5 {[%emt 0:00:57]} bxc5 {[%emt 0:01:15]} 20. e4 $1 {[%emt 0:05:38][%cal Be3e4,Be4d5][%mdl 32] Black must now prevent e5.} Qb6 {[%emt 0:11:23]} (20... d4 $11 {keeps the balance.}) 21. exd5 $16 {[%emt 0:09:33]} Rad8 {[%emt 0:04:48][%cal Rf6d5]} 22. Ba2 {[%emt 0:02:14]} ({Don't do} 22. Na4 Qa7 $14) 22... Nf4 {[%emt 0:12:35][%cal Rf6d5]} 23. Na4 {[%emt 0:08:46][%csl LRb6,LRc5]} Qd6 {[%emt 0:01:26]} 24. Nxc5 {[%emt 0:03:09]} Bxd5 {[%emt 0:00:12]} 25. Bxd5 {[%emt 0:00:15]} Qxd5 {[%emt 0:00:04]} 26. Qxd5 {[%emt 0:03:18]} Rxd5 {[%emt 0:00:03]} 27. b4 {[%emt 0:03:27]} Nd3 {[%emt 0:02:48]} 28. Nxd3 {[%emt 0:00:20]} Rxd3 {[%emt 0:00:10]} 29. bxa5 {[%emt 0:01:17]} Ra8 {[%emt 0:01:18]} 30. Ne5 $1 {[%emt 0:00:42]} Rxa3 {[%emt 0:01:00][%cal Bd3a3,Ba3a2,Ba2c2][%mdl 32]} 31. Nc4 {[%emt 0:01:04]} Ra2 {[%emt 0:00:53]} 32. Ra1 {[%emt 0:01:25]} Rc2 {[%emt 0:02:15]} 33. Ra4 {[%emt 0:00:36]} (33. Rec1 $142 Rxc1+ 34. Rxc1) 33... Nd5 {[%emt 0:01:28]} 34. Kf1 {[%emt 0:00:39]} Nc3 {[%emt 0:01:01]} (34... Ra7 $142) 35. Raa1 $1 {[%emt 0:00:35]} Nd5 {[%emt 0:01:25]} 36. Rec1 {[%emt 0:01:41]} Rxc1+ {[%emt 0:01:16]} 37. Rxc1 {[%emt 0:00:05][%mdl 4096] Endgame KRN-KRN} Rb8 {[%emt 0:01:37]} (37... Rc8 $16 38. Rd1 Rxc4) 38. Rd1 {[%emt 0:01:01]} Rb4 {[%emt 0:00:39]} (38... Nc7 $142 39. g3 Ne6) 39. Ne5 {[%emt 0:01:17]} Nc3 {[%emt 0:00:43]} 40. Ra1 {[%emt 0:01:03] Strongly threatening a6.} Rb5 $2 {[%emt 0:00:34] [#]} (40... Nb5 {was worth a try.} 41. Nd3 Rb3) 41. a6 $1 {[%emt 0:04:15] Hoping for a7.} Rxe5 $18 {[%emt 0:01:16] KRN-KR} 42. a7 {[%emt 0:02:30]} Re8 {[%emt 0:00:05] And now ...Ra8 would win.} 43. a8=Q {[%emt 0:00:17]} Rxa8 {[%emt 0:00:06]} 44. Rxa8+ {[%emt 0:00:03] KR-KN} Kg7 {[%emt 0:00:06]} 45. Ra7 {[%emt 0:03:04]} h5 $2 {[%emt 0:10:54]} (45... Nd5 {keeps fighting.} 46. g3 Kf6) 46. Ke1 {[%emt 0:02:22]} Kf6 {[%emt 0:08:44]} 47. Kd2 {[%emt 0:00:19]} Nd5 {[%emt 0:02:37]} 48. Ke2 {[%emt 0:02:03]} Ne7 $2 {[%emt 0:08:09]} (48... g5 49. g3 Kg6) 49. Kf3 {[%emt 0:00:37]} Nf5 {[%emt 0:04:37]} 50. Kf4 {[%emt 0:01:31]} Ng7 {[%emt 0:04:50]} 51. Ra6+ {[%emt 0:03:12]} Ne6+ {[%emt 0:00:06]} 52. Ke4 {[%emt 0:00:17]} Ke7 {[%emt 0:01:51]} 53. Ra2 {[%emt 0:00:56]} Kf6 {[%emt 0:00:38]} 54. Ra3 {[%emt 0:00:43]} Ng5+ {[%emt 0:04:54]} 55. Kd5 {[%emt 0:00:34]} Ne6 {[%emt 0:00:04]} 56. Rf3+ {[%emt 0:01:17]} Ke7 {[%emt 0:00:52]} 57. Ke5 {[%emt 0:01:06]} Nc5 {[%emt 0:03:16]} 58. Ra3 {[%emt 0:01:34]} Nd7+ {[%emt 0:00:22]} 59. Kf4 {[%emt 0:00:10]} Kf6 {[%emt 0:00:21]} 60. Ra6+ {[%emt 0:00:39]} Kg7 {[%emt 0:00:27]} 61. Rc6 {[%emt 0:01:24]} Nf6 {[%emt 0:01:01]} 62. Rd6 {[%emt 0:00:40]} Ne8 {[%emt 0:01:40]} 63. Rd8 {[%emt 0:00:17]} Nf6 {[%emt 0:00:36]} 64. f3 {[%emt 0:01:27]} Ng8 {[%emt 0:00:47] [#]} 65. Rd5 {[%emt 0:01:46]} (65. Rxg8+ $142 $1 {[%mdl 512]} Kxg8 66. Ke5) 65... Ne7 {[%emt 0:00:47]} 66. Rc5 {[%emt 0:00:27]} (66. Rd7 $142 Nf5 67. g4 hxg4 68. fxg4) 66... f6 $2 {[%emt 0:02:47]} (66... Ng8 67. g4 hxg4 68. fxg4 Nf6) 67. Ke4 {[%emt 0:00:32]} Kf7 {[%emt 0:00:08]} 68. Ra5 {[%emt 0:00:52]} Ke6 {[%emt 0:00:28]} 69. Ra6+ {[%emt 0:01:28]} Kf7 {[%emt 0:00:06]} 70. Kd4 {[%emt 0:02:17]} Nf5+ {[%emt 0:00:20]} 71. Kc5 {[%emt 0:00:22]} g5 {[%emt 0:00:55]} (71... Ke7 {was necessary.} 72. g3 Kf7) 72. Ra2 {[%emt 0:00:53]} h4 {[%emt 0:01:13]} 73. Kd5 {[%emt 0:00:42]} Ne7+ $2 {[%emt 0:00:28]} (73... Kg6 74. f4 Kh6 75. fxg5+ Kxg5) 74. Ke4 {[%emt 0:01:50] Threatens to win with Ra7.} Kg6 {[%emt 0:00:26]} 75. Ra6 {[%emt 0:00:17]} Nf5 {[%emt 0:01:02]} 76. Rc6 {[%emt 0:01:06]} Ng7 {[%emt 0:00:37]} 77. Ra6 $2 {[%emt 0:01:57]} ({White should try} 77. f4 $18 g4 78. Rc8) 77... Nh5 $2 {[%emt 0:00:33][%mdl 8192]} (77... Nf5 $11 78. f4 g4) 78. Rb6 {[%emt 0:03:02]} Nf4 {[%emt 0:00:08]} 79. g3 {[%emt 0:00:41]} hxg3 {[%emt 0:00:05]} 80. hxg3 {[%emt 0:00:04][%cal Bh2g3,Bg3g4][%mdl 32]} Ne2 {[%emt 0:00:43]} 81. g4 {[%emt 0:00:11]} Nf4 {[%emt 0:00:03]} 82. Rb2 $2 {[%emt 0:01:23]} (82. Rb7 {Intending Kd4 and mate.} Ng2 83. Kd5) 82... Ne6 $2 {[%emt 0:00:32] [#]} (82... Kf7 $18 83. Rb1 Kg6) 83. Kd5 $1 {[%emt 0:00:23] White mates.} Nf4+ {[%emt 0:00:06]} 84. Kd6 {[%emt 0:01:05]} f5 {[%emt 0:00:50]} 85. Rb5 {[%emt 0:01:20]} fxg4 {[%emt 0:00:09]} 86. fxg4 {[%emt 0:00:05]} Kf6 {[%emt 0:01:23]} 87. Rf5+ {[%emt 0:01:06]} Kg6 {[%emt 0:00:04]} 88. Ke7 {[%emt 0:00:09]} Nh5 {[%emt 0:00:47]} 89. Rf8 {[%emt 0:01:54]} Nf4 {[%emt 0:00:59]} 90. Rg8+ {[%emt 0:00:27]} Kh6 {[%emt 0:00:05]} 91. Kf6 {[%emt 0:00:11][%cal Rg8h8]} Nd5+ {[%emt 0:00:17]} 92. Kf7 {[%emt 0:00:06][%cal Rg8h8]} Kh7 {[%emt 0:01:27]} 93. Rxg5 {[%emt 0:00:12][%cal Rg5h5]} Nc7 {[%emt 0:00:14]} 94. Rh5# {[%emt 0:00:37] Weighted Error Value: White=0.12 (very precise) /Black=0.34} 1-0

[Event "4NCL 2021-22"]
[Site "England"]
[Date "2022.04.30"]
[Round "7.48"]
[White "Graham, Cassie M"]
[Black "Han, Yichen"]
[Result "1-0"]
[ECO "C55"]
[WhiteElo "1978"]
[BlackElo "2347"]
[Annotator "TA"]
[PlyCount "91"]
[EventDate "2021.11.27"]
[EventType "team-tourn"]
[EventCountry "ENG"]
[SourceTitle "playchess.com"]
[Source "ChessBase"]
[SourceQuality "1"]
[TimeControl "40/6000+30:3000+30"]

{[%evp 12,91,5,16,39,0,23,-20,0,-40,-10,-22,-11,-60,-45,-68,-38,-46,-33,-98,-103,-100,-84,-104,-109,-127,-122,-114,-61,-85,-83,-104,0,-114,0,-18,0,-20,-18,-29,-18,-20,-8,-76,28,88,498,337,280,132,390,187,157,172,166,171,501,508,962,484,2025,1991,29984,1666,5622,4631,29984,29976,29976,29977,12835,12834,29986,29987,29987,29988,29992,29992,29992,29993,29993,29994]} 1. e4 {[%emt 0:00:02]} e5 {[%emt 0:02:04]} 2. Nf3 {[%emt 0:00:05]} Nc6 {[%emt 0:00:08]} 3. Bc4 {[%emt 0:00:14]} Nf6 {[%emt 0:00:15]} 4. d3 {[%emt 0:00:12]} Be7 {[%emt 0:00:11]} 5. c3 {[%emt 0:01:09]} O-O {[%emt 0:00:30]} 6. Bb3 {[%emt 0:01:46]} d5 {[%emt 0:05:27]} 7. Nbd2 {[%emt 0:02:54][%cal Bb1d2,Bd2f1,Bf1g3][%mdl 32]} Bc5 {[%emt 0:06:11] Recently 7...Be6 got a lot of attention. C55: Two Knights: 4 d3, 4 d4 exd4 5 e5 and Max Lange Attack.} 8. h3 {[%emt 0:03:18]} a6 {[%emt 0:06:24]} 9. Qe2 {[%emt 0:02:35]} Re8 {[%emt 0:02:47] The position is equal.} 10. g4 {[%emt 0:15:24]} Ba7 {[%emt 0:15:32]} 11. Nf1 {[%emt 0:05:21]} Na5 {[%emt 0:00:58] [#]} 12. Bg5 $146 {[%emt 0:12:33]} (12. Bc2 $11) ({Predecessor:} 12. Bc2 Bd7 13. N3d2 dxe4 14. dxe4 Bb5 15. Qf3 Nc4 16. Nxc4 Bxc4 17. Bg5 Re6 18. Ng3 {½-½ (45) Kofidis,S (2592)-Rause,O (2622) Argentina 1996}) 12... Nxb3 {[%emt 0:02:13]} (12... dxe4 {feels hotter.} 13. dxe4 h6 14. Rd1 Qe7) 13. axb3 {[%emt 0:00:03]} c6 {[%emt 0:15:06]} 14. Ng3 {[%emt 0:02:47]} h6 {[%emt 0:01:17]} 15. Bh4 {[%emt 0:14:15]} ({White should play} 15. Be3 $15) 15... g5 $17 {[%emt 0:02:10]} 16. Nxg5 {[%emt 0:00:38]} hxg5 {[%emt 0:00:07]} 17. Bxg5 {[%emt 0:00:03] Strongly threatening Qf3.} Qd6 $1 {[%emt 0:00:20]} 18. Nf5 {[%emt 0:02:10]} Bxf5 {[%emt 0:01:27]} 19. gxf5 {[%emt 0:00:31]} Nh7 {[%emt 0:02:00]} (19... b5 $17 20. h4 Kf8) 20. h4 {[%emt 0:08:18]} Kh8 $1 {[%emt 0:01:37][%cal Oa6a5]} 21. O-O-O {[%emt 0:00:38]} d4 {[%emt 0:03:46]} (21... b5 $17 22. Kb1 Rg8) 22. Kc2 {[%emt 0:03:05]} (22. c4 $1 $11 {was the only way to keep the balance.}) 22... f6 {[%emt 0:02:19]} (22... dxc3 $17 23. bxc3 Rg8) 23. Bh6 {[%emt 0:02:06] Rhg1 is the strong threat.} Rg8 {[%emt 0:00:46]} 24. Rhg1 {[%emt 0:01:14]} dxc3 {[%emt 0:05:43]} 25. bxc3 {[%emt 0:03:10]} Qc5 {[%emt 0:04:25]} 26. Be3 {[%emt 0:08:42]} Qf8 {[%emt 0:00:45]} 27. Rg6 {[%emt 0:07:36]} (27. Bxa7 $11 {keeps the balance.} Rxg1 28. Rxg1 Rxa7 29. f4) 27... Qa3 {[%emt 0:03:02]} ({Black should try} 27... Bxe3 $1 $17 28. Qxe3 Qa3) 28. Bc1 $11 {[%emt 0:00:54][%mdl 1024] White has compensation.} Qa2+ {[%emt 0:02:56]} (28... Qc5 $16 {was worth a try.}) 29. Bb2 $18 {[%emt 0:00:06] And now Ra1 would win.} Qa5 {[%emt 0:00:06]} 30. Qh5 {[%emt 0:02:40]} (30. Rdg1 $18 {has better winning chances.}) 30... Qc5 $2 {[%emt 0:08:28][%mdl 8192] A mistake that costs the game.} (30... Raf8 $16 {is a better defense.}) 31. Rd2 {[%emt 0:00:53] The board is on fire.} (31. Rxf6 $142 Raf8 32. Rh6) 31... Qe7 {[%emt 0:01:44]} 32. f4 $1 {[%emt 0:02:16][%cal Bf2f4,Bf4e5,Be5f6][%mdl 32] Threatens to win with fxe5.} Be3 {[%emt 0:03:46]} 33. fxe5 $1 {[%emt 0:02:04]} ({Not} 33. Rdg2 Bxf4 34. d4 b5 $17) 33... Bxd2 $2 {[%emt 0:03:13]} (33... Qxe5 34. Rdg2 Rxg6 35. Qxg6 Qe7) 34. exf6 {[%emt 0:00:47]} Qf7 {[%emt 0:02:11]} (34... Qd7 $142 35. f7 Be3 36. fxg8=N Rxg8) 35. Kxd2 {[%emt 0:00:34] aiming for Kc2.} Rgd8 {[%emt 0:03:59]} (35... Qxb3 $2 36. Kc1 Qb6 37. f7) (35... b5 $142 36. c4 bxc4 37. bxc4 Rab8) 36. c4 {[%emt 0:00:46] Intending Rh6 and mate.} Rd7 {[%emt 0:00:26]} 37. Qh6 {[%emt 0:03:15]} (37. e5 $142 Rxd3+ 38. Kxd3 Rd8+ 39. Kc2 Qd7 40. Kb1 Qd1+ 41. Qxd1 Rxd1+ 42. Kc2) 37... Rg8 {[%emt 0:01:56]} 38. e5 {[%emt 0:01:20][%cal Be4e5,Be5e6][%mdl 32] White threatens e6 and mate.} Qf8 {[%emt 0:00:03]} 39. Qh5 {[%emt 0:02:05]} Qc5 {[%emt 0:02:02]} 40. e6 {[%emt 0:01:14]} Qf2+ {[%emt 0:00:47] [#]} 41. Kc1 $1 {[%emt 0:09:32] White wants to mate with f7+.} ({Stronger than} 41. Qe2 {[#]} Rxd3+ $1 42. Kc1 Qxe2 $11) 41... Qe3+ {[%emt 0:09:35]} 42. Kb1 {[%emt 0:02:50] White mates.} Qe1+ {[%emt 0:00:16]} 43. Bc1 {[%emt 0:02:51]} Qb4 {[%emt 0:19:34]} 44. Rxg8+ {[%emt 0:02:28][%mdl 64] Remove Defender} Kxg8 {[%emt 0:00:05]} 45. Qg6+ {[%emt 0:00:10]} Kh8 {[%emt 0:00:11]} 46. f7 {[%emt 0:03:13] Weighted Error Value: White=0.37/Black=0.95} 1-0

[Event "4NCL 2021-22"]
[Site "England"]
[Date "2022.04.30"]
[Round "7.49"]
[White "Sarakauskas, Gediminas"]
[Black "Turner, Max N"]
[Result "1/2-1/2"]
[ECO "D11"]
[WhiteElo "2423"]
[BlackElo "2223"]
[Annotator "TA"]
[PlyCount "121"]
[EventDate "2021.11.27"]
[EventType "team-tourn"]
[EventCountry "ENG"]
[SourceTitle "playchess.com"]
[Source "ChessBase"]
[SourceQuality "1"]
[TimeControl "40/6000+30:3000+30"]

{[%evp 16,121,0,0,3,-8,-8,-22,12,-3,0,-8,0,-6,14,17,14,6,34,25,73,45,41,18,28,37,41,35,34,20,26,20,18,13,18,7,10,12,11,5,25,32,30,14,19,6,11,0,0,0,0,0,0,0,5,0,0,0,0,0,4,5,8,0,7,7,7,8,8,0,0,0,0,0,8,8,8,8,8,8,8,8,8,8,8,8,8,8,8,8,8,8,8,8,8,8,8,8,8,8,8,8,8,0,0,0,0,0]} 1. d4 {[%emt 0:00:01]} Nf6 {[%emt 0:00:13]} 2. g3 {[%emt 0:00:29]} d5 {[%emt 0:00:54]} 3. Bg2 {[%emt 0:00:26]} c6 {[%emt 0:00:54]} 4. Nf3 {[%emt 0:01:24]} Bf5 {[%emt 0:04:34]} 5. c4 {[%emt 0:03:38]} e6 {[%emt 0:08:57]} 6. Nc3 {[%emt 0:08:25]} Nbd7 {[%emt 0:00:00]} 7. O-O {[%emt 0:15:00]} h6 {[%emt 0:00:00]} 8. Qb3 {[%emt 0:02:55] is now debated instead of 8.Nd2.} Qb6 {[%emt 0:00:00]} 9. c5 {[%emt 0:00:04]} Qa6 {[%emt 0:09:02] D11: Slav Defence: 3 Nf3 sidelines and 3...Nf6 4 e3 Bg4.} 10. Re1 {[%emt 0:08:43]} b6 {[%emt 0:02:35]} 11. cxb6 {[%emt 0:00:10]} Qxb6 {[%emt 0:06:03] [#]} 12. Nd2 $146 {[%emt 0:10:34]} ({Predecessor:} 12. Ne5 Rc8 13. Nxd7 Nxd7 14. e4 dxe4 15. Nxe4 Be7 16. Bf4 Bxe4 17. Bxe4 Nf6 18. Bg2 {0-1 (62) Liascovich,L (2447)-Peralta,F (2609) Saenz Pena 2013}) 12... Qxd4 {[%emt 0:05:06]} 13. Qb7 {[%emt 0:01:08][%csl LRa8,LRc6]} Rb8 {[%emt 0:00:52]} 14. Qxc6 {[%emt 0:00:02]} Ng4 {[%emt 0:07:35]} 15. e3 {[%emt 0:00:48]} Qb6 {[%emt 0:14:56]} 16. Qxb6 {[%emt 0:02:32]} Rxb6 {[%emt 0:00:14]} 17. e4 {[%emt 0:01:13]} dxe4 {[%emt 0:02:07]} (17... Bc5 $11 18. Re2 dxe4) 18. Ndxe4 {[%emt 0:00:58]} (18. Ncxe4 $5 {[%cal Rd2c4]} Nge5 19. Nb3 $14) 18... Be7 {[%emt 0:06:48]} 19. Na4 {[%emt 0:21:36]} Rb8 {[%emt 0:04:57]} 20. Bf4 {[%emt 0:02:36] [#] Hoping for Nd6+.} e5 {[%emt 0:00:46]} 21. Bd2 {[%emt 0:00:12]} O-O {[%emt 0:04:34]} 22. Nec3 {[%emt 0:08:39]} Ngf6 {[%emt 0:02:47]} 23. Be3 {[%emt 0:01:05]} a5 {[%emt 0:01:35]} 24. Rad1 {[%emt 0:00:48][%cal Ba1d1,Bd1d6,Bd6a6,Ba6a5,Ba5d5][%mdl 32]} Bb4 {[%emt 0:06:03]} 25. Ba7 {[%emt 0:01:32]} Bxc3 {[%emt 0:01:09]} 26. bxc3 {[%emt 0:00:45]} Rbc8 {[%emt 0:01:11]} 27. Rd6 {[%emt 0:04:08]} Rc7 {[%emt 0:05:29]} 28. Ra6 {[%emt 0:00:09]} Be6 {[%emt 0:04:33]} 29. Ra1 {[%emt 0:05:33]} Bd5 {[%emt 0:05:33] The position is equal.} 30. Bxd5 {[%emt 0:00:42]} Nxd5 {[%emt 0:00:04]} 31. Rxa5 {[%emt 0:00:07]} Ra8 {[%emt 0:00:53]} 32. Rxd5 {[%emt 0:00:16] And now Bb6 would win.} Raxa7 {[%emt 0:00:17]} 33. Nb2 {[%emt 0:01:33]} Rxc3 {[%emt 0:00:07]} 34. a4 {[%emt 0:00:36]} e4 {[%emt 0:03:29]} 35. Nd1 {[%emt 0:01:41]} Rc5 {[%emt 0:02:00]} 36. Ne3 {[%emt 0:06:15]} Rxd5 {[%emt 0:00:28]} 37. Nxd5 $11 {[%emt 0:00:01][%mdl 4096] Endgame KRN-KRN} Ra5 {[%emt 0:01:02]} 38. Nc3 {[%emt 0:00:07]} f5 {[%emt 0:00:26]} 39. Rb1 {[%emt 0:02:19]} Nc5 {[%emt 0:00:50]} 40. Rb5 {[%emt 0:00:43]} Rxb5 {[%emt 0:00:07]} 41. axb5 {[%emt 0:50:05][%cal Ba4b5,Bb5b6][%mdl 32] KN-KN} Kf7 {[%emt 0:50:47]} 42. g4 {[%emt 0:00:00]} fxg4 {[%emt 0:00:00]} 43. b6 {[%emt 0:00:00]} Ke6 {[%emt 0:00:00]} 44. Nxe4 {[%emt 0:00:00]} Nb7 {[%emt 0:00:00]} (44... Nxe4 $2 45. b7 $18) 45. Kg2 {[%emt 0:00:00]} Kd5 {[%emt 0:00:00]} 46. Nc3+ {[%emt 0:00:00]} Kc6 {[%emt 0:00:00]} 47. Kg3 {[%emt 0:00:00]} Kxb6 {[%emt 0:00:00]} 48. Kxg4 {[%emt 0:00:00]} Kc5 {[%emt 0:00:00]} 49. Kf5 {[%emt 0:00:00]} Nd6+ {[%emt 0:00:00]} 50. Kg6 {[%emt 0:00:00]} Kd4 {[%emt 0:00:00]} 51. Nd1 {[%emt 0:00:00]} Kd3 {[%emt 0:00:00]} 52. Kxg7 {[%emt 0:00:00]} Nf5+ {[%emt 0:00:00]} 53. Kg6 {[%emt 0:00:00]} Nh4+ {[%emt 0:00:00]} 54. Kxh6 {[%emt 0:00:00] Threatens to win with Kh5.} Nf3 {[%emt 0:00:00]} 55. h4 {[%emt 0:00:00]} Nxh4 {[%emt 0:00:00]} 56. Kg5 {[%emt 0:01:30]} Nf3+ {[%emt 0:00:00]} 57. Kf4 {[%emt 0:00:00]} Ke2 {[%emt 0:00:00] [#]} 58. Kg3 $1 {[%emt 0:00:00] White threatens Nc3+ and mate.} Nd2 {[%emt 0:00:00]} (58... Ne5 59. Nc3+) 59. f4 {[%emt 0:00:00]} Kxd1 {[%emt 0:00:00]} 60. f5 {[%emt 0:00:00]} Ne4+ {[%emt 0:00:00]} 61. Kf4 {[%emt 0:00:00] Weighted Error Value: White=0.03 (flawless) /Black=0.04 (flawless)} 1/2-1/2

[Event "4NCL 2021-22"]
[Site "England"]
[Date "2022.04.30"]
[Round "7.50"]
[White "Coathup, Roger H"]
[Black "Kanyamarala, Tarun"]
[Result "0-1"]
[ECO "A83"]
[WhiteElo "2154"]
[BlackElo "2321"]
[Annotator "TA RC"]
[PlyCount "56"]
[EventDate "2021.11.27"]
[EventType "team-tourn"]
[EventCountry "ENG"]
[SourceTitle "playchess.com"]
[Source "ChessBase"]
[SourceQuality "1"]
[TimeControl "40/6000+30:3000+30"]

{[%evp 11,56,-30,-16,-59,-23,-39,-42,-49,-45,-57,-73,-120,-99,-99,-66,-66,-39,-72,-57,-56,-12,-74,-49,-74,-63,-67,-68,-77,-67,-309,-298,-308,-310,-302,-302,-366,-360,-392,-374,-736,-736,-733,-722,-722,-722,-708,-608]} 1. d4 {[%emt 0:00:05]} f5 {[%emt 0:00:12]} 2. e4 {[%emt 0:00:05]} fxe4 {[%emt 0:00:06]} 3. Nc3 {[%emt 0:00:03]} Nf6 {[%emt 0:00:47]} 4. Bg5 {[%emt 0:00:06]} g6 {[%emt 0:01:49]} 5. Bxf6 {[%emt 0:01:43]} exf6 {[%emt 0:00:16]} 6. Nxe4 {[%emt 0:00:07]} d5 {[%emt 0:12:32] [#] White must now prevent ...Qe7.} 7. Ng3 {[%emt 0:08:35] A83: Dutch Defence: Staunton Gambit with 3 Nc3 Nf6 4 Bg5.} Bd6 {[%emt 0:00:38]} 8. Bd3 {[%emt 0:02:28]} O-O {[%emt 0:01:39] [#]} 9. Qd2 $146 {[%emt 0:08:42] Black is slightly better.} ({Predecessor:} 9. N1e2 Nc6 10. c3 Re8 11. Qd2 a6 12. O-O-O b5 13. Kb1 b4 14. c4 dxc4 15. Bxc4+ {0-1 (37) Tirado Parra,A (1903)-Camarero Izquierdo,J (1731) Madrid 2017}) 9... Qe7+ {[%emt 0:13:29]} 10. N1e2 {[%emt 0:05:43]} f5 {[%emt 0:01:14]} 11. f4 {[%emt 0:06:06]} (11. O-O-O $142) 11... Nd7 {[%emt 0:07:19]} 12. O-O {[%emt 0:05:08]} Qh4 {[%emt 0:06:47]} 13. Rf3 {[%emt 0:05:50]} Qh6 {[%emt 0:00:54]} 14. Nf1 {[%emt 0:03:12]} Nf6 {[%emt 0:02:03]} 15. Ne3 {[%emt 0:04:59]} Ng4 {[%emt 0:09:43]} 16. h3 {[%emt 0:12:55]} (16. Nxg4 $1 $11 fxg4 17. Rf2) 16... Nf6 {[%emt 0:02:21]} 17. Re1 {[%emt 0:08:53]} Bd7 {[%emt 0:02:27][%cal Bc8d7,Bd7c6,Bc6d5,Bd5e4][%mdl 32]} 18. c4 {[%emt 0:10:09]} c6 {[%emt 0:01:20]} 19. cxd5 {[%emt 0:01:07]} cxd5 {[%emt 0:00:03]} ({Much less strong is} 19... Nxd5 20. Bc4 $14) 20. Nxd5 $2 {[%emt 0:11:21] Loses the game.} Nxd5 $19 {[%emt 0:00:27]} 21. Bc4 {[%emt 0:00:08] [#]} Bc6 {[%emt 0:00:48]} ({Weaker is} 21... Be6 22. Nc3 Nxf4 23. Rxe6 $11 (23. Bxe6+ Kg7 $15)) 22. Nc3 {[%emt 0:03:24]} Bb4 {[%emt 0:01:32]} 23. Qe3 {[%emt 0:02:59]} Bxc3 {[%emt 0:03:44]} 24. bxc3 {[%emt 0:01:20]} Rae8 {[%emt 0:01:00] Prevents Qe5.} 25. Bxd5+ $2 {[%emt 0:01:12]} (25. Qc1) 25... Bxd5 {[%emt 0:00:15] Black is clearly winning.} 26. Qxe8 {[%emt 0:00:07]} Rxe8 {[%emt 0:00:10]} 27. Rxe8+ {[%emt 0:00:04]} Kf7 {[%emt 0:00:07]} 28. Rfe3 {[%emt 0:00:14]} Be4 {[%emt 0:02:10] Weighted Error Value: White=0.56/Black=0.11 (very precise)} 0-1